[Event "French-ch U16-U18 2024"]
[Site "Agen"]
[Date "2024.04.16"]
[Round "4.7"]
[White "Garde, Guillaume"]
[Black "Vallee, Louis"]
[Result "0-1"]
[ECO "B23"]
[WhiteElo "2101"]
[BlackElo "2270"]
[Annotator "RC"]
[PlyCount "108"]
[EventDate "2024.04.14"]
[EventType "swiss"]
[EventCountry "FRA"]
[SourceTitle "playchess.com"]
[Source "ChessBase"]
[SourceQuality "1"]
[TimeControl "5400+30"]

1. e4 {[%emt 0:00:04]} c5 {[%emt 0:00:08]} 2. Nc3 {[%emt 0:00:09]} Nc6 {[%emt 0:00:08]} 3. Bb5 {[%emt 0:00:07]} Nd4 {[%emt 0:00:06]} 4. Nf3 {[%emt 0:00:06]} a6 {[%emt 0:00:05]} 5. Bd3 {[%emt 0:00:04]} g6 {[%emt 0:00:09]} 6. O-O {[%emt 0:00:40]} Bg7 {[%emt 0:00:43]} 7. Re1 {[%emt 0:00:26]} Nh6 {[%emt 0:00:49]} 8. Nxd4 {[%emt 0:07:35]} cxd4 {[%emt 0:00:10]} 9. Ne2 {[%emt 0:00:09]} Ng4 {[%emt 0:00:31]} 10. c3 {[%emt 0:18:52]} Qc7 {[%emt 0:14:02]} 11. Ng3 {[%emt 0:04:56]} h5 {[%emt 0:03:51]} 12. h3 {[%emt 0:11:07]} Ne5 {[%emt 0:06:06]} 13. Qc2 {[%emt 0:08:11]} Qd6 {[%emt 0:18:42]} 14. cxd4 {[%emt 0:02:53]} Qxd4 {[%emt 0:02:21]} 15. Bf1 {[%emt 0:00:38]} h4 {[%emt 0:12:49]} 16. Nh1 {[%emt 0:02:16]} d5 {[%emt 0:06:28]} 17. Qc3 {[%emt 0:09:46]} Qxc3 {[%emt 0:07:00]} 18. dxc3 {[%emt 0:00:07]} dxe4 {[%emt 0:00:24]} 19. Rxe4 {[%emt 0:00:48]} Bf5 {[%emt 0:01:24]} 20. Re1 {[%emt 0:06:03]} O-O-O {[%emt 0:13:10]} 21. Bf4 {[%emt 0:02:26]} Nc6 {[%emt 0:02:13]} 22. f3 {[%emt 0:02:07]} e5 {[%emt 0:01:16]} 23. Be3 {[%emt 0:00:27]} Be6 {[%emt 0:00:53]} 24. Nf2 {[%emt 0:03:14]} f5 {[%emt 0:01:50]} 25. Red1 {[%emt 0:12:59]} Rxd1 {[%emt 0:01:34]} 26. Rxd1 {[%emt 0:00:12]} Bxa2 {[%emt 0:01:27]} 27. c4 {[%emt 0:04:29]} Nd4 {[%emt 0:01:56]} 28. f4 {[%emt 0:02:43]} Nc2 {[%emt 0:02:09]} 29. Bb6 {[%emt 0:00:47]} e4 {[%emt 0:00:55]} 30. Rd2 {[%emt 0:00:35]} Bb3 {[%emt 0:00:19]} 31. Rd6 {[%emt 0:00:20]} Bxb2 {[%emt 0:00:38]} 32. Rxg6 {[%emt 0:00:35]} Re8 {[%emt 0:00:30]} 33. Be2 {[%emt 0:00:34]} Nd4 {[%emt 0:00:40]} 34. Bh5 {[%emt 0:00:26]} e3 {[%emt 0:00:43]} 35. Nd3 {[%emt 0:00:15]} e2 {[%emt 0:00:51]} 36. Rd6 {[%emt 0:00:27]} Rh8 {[%emt 0:00:50]} 37. Bg6 {[%emt 0:00:56]} Bxc4 {[%emt 0:00:28]} 38. Ne1 {[%emt 0:00:28]} Nc6 {[%emt 0:00:40]} 39. Bxf5+ {[%emt 0:00:07]} Kb8 {[%emt 0:00:00]} 40. Kf2 {[%emt 0:00:53]} Rf8 {[%emt 0:00:18]} 41. Be4 {[%emt 0:00:24]} Rxf4+ {[%emt 0:00:15]} 42. Bf3 {[%emt 0:00:00]} Bd4+ {[%emt 0:01:00]} 43. Bxd4 {[%emt 0:00:02]} Rxd4 {[%emt 0:00:22]} 44. Rh6 {[%emt 0:00:11]} Ne5 {[%emt 0:00:30]} 45. Rh8+ {[%emt 0:00:52]} Ka7 {[%emt 0:00:14]} 46. Re8 {[%emt 0:01:31]} Nxf3 {[%emt 0:00:27]} 47. Nxf3 {[%emt 0:00:18]} Rd1 {[%emt 0:00:36]} 48. Ne1 {[%emt 0:00:24]} a5 {[%emt 0:00:07]} 49. Re4 {[%emt 0:00:10]} b5 {[%emt 0:00:11]} 50. Rxh4 {[%emt 0:00:11]} a4 {[%emt 0:00:13]} 51. Re4 {[%emt 0:01:03]} a3 {[%emt 0:00:47]} 52. Re3 {[%emt 0:00:15]} a2 {[%emt 0:00:22]} 53. Ra3+ {[%emt 0:00:04]} Kb6 {[%emt 0:00:08]} 54. Nc2 {[%emt 0:00:12]} Rf1+ {[%emt 0:00:26]} 0-1

[Event "French-ch U16-U18 2024"]
[Site "Agen"]
[Date "2024.04.16"]
[Round "4.8"]
[White "Marchix, Esteban"]
[Black "Trevisiol, Antoine"]
[Result "0-1"]
[ECO "C78"]
[WhiteElo "2019"]
[BlackElo "2235"]
[Annotator "TA"]
[PlyCount "160"]
[EventDate "2024.04.14"]
[EventType "swiss"]
[EventCountry "FRA"]
[SourceTitle "playchess.com"]
[Source "ChessBase"]
[SourceQuality "1"]
[TimeControl "5400+30"]

{[%evp 52,160,-9,-58,-49,-74,-52,-71,-72,-149,-160,-168,-51,-35,-35,-54,-36,-114,-139,-120,-120,-122,-133,-123,-97,-87,-102,-80,-95,-152,-147,-151,-139,-160,-150,-132,-130,-152,-150,-248,-222,-243,-247,-308,-302,-428,-399,-412,-296,-820,-817,-868,-845,-1425,-999,-2529,-1361,-1825,-1048,-1832,-1518,-1722,-1551,-29971,-29972,-29971,-29973,-29971,-29974,-29976,-29977,-29977,-29978,-29976,-8,-29980,-29981,-29983,-29981,-29982,-29981,-29981,-29982,-29982,-29983,-29983,-29984,-29984,-29985,-29985,-29986,-29986,-29987,-29987,-29986,-29987,-29987,-29988,-29988,-29989,-29989,-29990,-29989,-29994,-29990,-29990,-29991,-29994,-29995,-29995,-29996]} 1. e4 {[%emt 0:00:06]} e5 {[%emt 0:00:11]} 2. Nf3 {[%emt 0:00:18]} Nc6 {[%emt 0:00:12]} 3. Bb5 {[%emt 0:00:08]} a6 {[%emt 0:00:12]} 4. Ba4 {[%emt 0:00:16]} Nf6 {[%emt 0:00:17]} 5. O-O {[%emt 0:00:17]} b5 {[%emt 0:00:16]} 6. Bb3 {[%emt 0:00:03]} Bc5 {[%emt 0:00:12]} 7. a4 {[%emt 0:01:54]} Bb7 {[%emt 0:03:00]} 8. c3 {[%emt 0:08:17]} d6 {[%emt 0:00:21]} 9. d4 {[%emt 0:00:25]} Bb6 {[%emt 0:00:25]} 10. Re1 {[%emt 0:03:17]} h6 {[%emt 0:06:38]} 11. axb5 {[%emt 0:03:26]} axb5 {[%emt 0:00:36]} 12. Rxa8 {[%emt 0:00:09]} Qxa8 {[%emt 0:07:30]} 13. Na3 {[%emt 0:00:41]} O-O {[%emt 0:14:13]} 14. Nxb5 {[%emt 0:14:18] C78: Ruy Lopez: Archangelsk and Möller Defences.} exd4 {[%emt 0:02:06]} 15. cxd4 {[%emt 0:01:31]} Na5 {[%emt 0:01:12]} 16. Bc2 {[%emt 0:20:03]} Nxe4 {[%emt 0:13:55]} 17. b4 {[%emt 0:24:14]} Nc4 {[%emt 0:04:01]} 18. Nh4 $146 {[%emt 0:01:44]} ({Predecessor:} 18. Qd3 d5 19. Bf4 Qc8 20. Nc3 Re8 21. Na4 Ba6 22. Qd1 Na3 23. Bxe4 Rxe4 24. Rxe4 dxe4 {½-½ Moradi,B (2220)-Moradiabadi,E (2354) IRI-ch Mashad 2003 (4)}) 18... Re8 {[%emt 0:12:03]} 19. Nf5 {[%emt 0:06:01]} Nf6 {[%emt 0:02:50]} 20. Rxe8+ {[%emt 0:03:16]} Qxe8 {[%emt 0:00:10]} 21. Nc3 {[%emt 0:00:21]} Qa8 {[%emt 0:18:00]} 22. Qe2 {[%emt 0:10:45]} Qa1 {[%emt 0:01:57]} 23. Qe1 {[%emt 0:00:00]} g6 {[%emt 0:01:55]} 24. Nxh6+ {[%emt 0:00:00]} Kg7 {[%emt 0:00:01]} 25. Nf5+ {[%emt 0:00:00]} Kh7 {[%emt 0:01:45]} 26. Ng3 {[%emt 0:01:05]} Bxd4 {[%emt 0:00:32]} 27. Nce2 {[%emt 0:00:15]} (27. Nge2 $11 Bb6 28. h3) 27... Bb2 $15 {[%emt 0:01:19]} 28. Bb3 {[%emt 0:00:17]} Ne5 {[%emt 0:05:21]} 29. Qd1 {[%emt 0:00:33]} Ba6 {[%emt 0:01:28]} 30. Bxb2 {[%emt 0:00:31]} (30. Qc2 $142 Nd3 (30... Bxc1 31. Qxc1 Qxc1+ 32. Nxc1 $17) 31. Qxc7 Bxc1 32. Qxf7+ (32. Qxd6 Be3+) 32... Kh6 33. Qf8+ Kg5 34. Bd1 Nxf2 (34... Nxb4 $2 35. h4+ Kxh4 36. Nf5+ Kg5 37. Ned4 $18) 35. Kxf2) 30... Qxb2 $17 {[%emt 0:00:09]} 31. Qc2 {[%emt 0:00:15]} Qa1+ {[%emt 0:01:06]} (31... Qxc2 $19 32. Bxc2 Nc6) 32. Qc1 $15 {[%emt 0:00:11]} Qxc1+ {[%emt 0:00:16]} 33. Nxc1 {[%emt 0:00:01]} Kg7 {[%emt 0:00:46]} 34. f3 {[%emt 0:00:08] [#]} ({White should play} 34. Nf1 $15) 34... Nc6 $1 $17 {[%emt 0:00:13]} 35. Na2 {[%emt 0:00:30]} Nd4 {[%emt 0:00:13]} 36. Ba4 {[%emt 0:01:01]} Nd5 {[%emt 0:00:14]} 37. Ne4 {[%emt 0:01:01]} Bc4 {[%emt 0:00:32]} 38. Nec3 {[%emt 0:00:32]} Ne2+ {[%emt 0:00:57]} 39. Nxe2 {[%emt 0:00:04]} Bxa2 {[%emt 0:00:06]} 40. Nd4 {[%emt 0:01:02]} (40. b5 $142) 40... Nxb4 $17 {[%emt 0:00:21]} 41. Nb5 {[%emt 0:00:11]} Nd5 {[%emt 0:01:35]} 42. Kf2 {[%emt 0:00:22]} Kf6 {[%emt 0:00:59]} 43. h4 {[%emt 0:00:33]} Bc4 {[%emt 0:00:21]} 44. Nd4 {[%emt 0:00:16]} c5 {[%emt 0:00:39]} 45. Nc2 {[%emt 0:00:52]} (45. Nb3 $17) 45... Nb6 $19 {[%emt 0:00:40]} 46. Bc6 {[%emt 0:00:08]} d5 {[%emt 0:00:27]} 47. Ke3 {[%emt 0:00:11]} Ke5 {[%emt 0:00:35]} 48. f4+ {[%emt 0:00:37]} (48. Kf2 {is a better defense.}) 48... Kd6 $19 {[%emt 0:00:16]} 49. Be8 {[%emt 0:00:07]} Bb3 {[%emt 0:00:58]} 50. Na3 $2 {[%emt 0:00:37]} (50. Kd3 d4 51. Nxd4 cxd4 52. Kxd4) 50... Nc4+ $19 {[%emt 0:00:29]} 51. Nxc4+ {[%emt 0:00:03]} Bxc4 {[%emt 0:00:04]} (51... dxc4 52. Bxf7 Bc2 53. Bxc4 $18) 52. g4 {[%emt 0:00:23]} d4+ {[%emt 0:00:38]} 53. Ke4 {[%emt 0:01:08]} Ke6 {[%emt 0:00:45]} 54. Ba4 {[%emt 0:01:45]} Be2 {[%emt 0:00:39]} 55. f5+ {[%emt 0:01:05]} gxf5+ {[%emt 0:00:14]} 56. gxf5+ {[%emt 0:00:01]} Kf6 {[%emt 0:00:21]} 57. Kf4 {[%emt 0:00:44]} c4 {[%emt 0:00:58]} 58. Ke4 {[%emt 0:00:57]} d3 {[%emt 0:00:07]} 59. Ke3 {[%emt 0:00:20]} c3 {[%emt 0:00:17]} 60. Bd7 {[%emt 0:00:17]} Bf1 {[%emt 0:00:17]} 61. h5 {[%emt 0:00:32]} d2 {[%emt 0:00:38]} 62. Ba4 {[%emt 0:00:07]} Kxf5 $2 {[%emt 0:00:14]} (62... Kg5 {mates} 63. Bb3 Bh3 (63... Kxf5 $2 64. h6 $19) (63... Kxh5 64. Bxf7+ Kg5 65. Bb3 $15) 64. Kd4 Bg4 (64... Kxf5 65. Kxc3 Bg4 66. Kxd2 $11) 65. h6 Kxh6 (65... d1=B 66. h7 $18) 66. Kxc3 d1=Q (66... d1=B 67. Bxf7 Bxf5 $19) 67. Bxd1 Bxd1 68. f6 Kg6 69. Kd2 Bg4 70. Ke3 Kf5 (70... Kxf6 71. Kf4 Bh5 72. Ke4 Kg5 73. Ke3 f5 74. Kd4 f4 75. Ke4 f3 76. Ke3 Bg4 77. Ke4 f2 78. Ke5 f1=Q 79. Kd5 Kf4 80. Kd4 Qb5 81. Kc3 Ke3 82. Kc2 Kd4 83. Kc1 Qb3 84. Kd2 Qd1#) 71. Kd4 Kxf6 72. Kd5 Kg5 73. Ke4 f5+ 74. Ke3 f4+ 75. Kf2 f3 76. Ke3 Kf5 77. Kf2 Kf4 78. Ke1 Ke3 79. Kd1 f2+ 80. Kc1 Kd4 (80... f1=R+ 81. Kb2 Be6 82. Ka3 Kd4 83. Kb4 Bc4 84. Ka4 Kc3 85. Ka5 Rf6 86. Ka4 Ra6#) 81. Kb2 f1=Q (81... f1=R 82. Kb3 Be6+ 83. Kc2 Rf2+ 84. Kd1 Ke3 85. Kc1 Bf5 86. Kd1 Rf1#) 82. Kc2 Qa1 83. Kb3 Bd1+ 84. Kb4 Qa4#) 63. Bd1 $2 {[%emt 0:00:24][%mdl 8192]} (63. Kd4 $11) 63... Kg5 {[%emt 0:00:19]} 64. Bf3 {[%emt 0:01:10]} Bh3 {[%emt 0:00:47]} 65. Bd1 {[%emt 0:00:18]} Bg4 {[%emt 0:00:17]} 66. h6 {[%emt 0:00:23]} Bf5 {[%emt 0:00:15]} 67. Bb3 {[%emt 0:00:40]} Kxh6 {[%emt 0:00:11]} 68. Ke2 {[%emt 0:00:15]} Bg4+ {[%emt 0:00:08]} 69. Kd3 {[%emt 0:00:04]} d1=Q+ {[%emt 0:00:07]} 70. Bxd1 {[%emt 0:00:03]} Bxd1 {[%emt 0:00:06]} 71. Kxc3 {[%emt 0:00:02]} Kg5 {[%emt 0:00:11]} 72. Kd2 {[%emt 0:00:05]} Ba4 {[%emt 0:00:08]} 73. Ke3 {[%emt 0:00:05]} Kg4 {[%emt 0:00:07]} 74. Kf2 {[%emt 0:00:04]} Kf4 {[%emt 0:00:05]} 75. Kf1 {[%emt 0:00:04]} f5 {[%emt 0:00:09]} 76. Kf2 {[%emt 0:00:04]} Bb5 {[%emt 0:00:05]} 77. Kg1 {[%emt 0:00:06]} Ke3 {[%emt 0:00:05]} 78. Kg2 {[%emt 0:00:07]} f4 {[%emt 0:00:04]} 79. Kh1 {[%emt 0:00:06]} f3 {[%emt 0:00:08]} 80. Kh2 {[%emt 0:00:04]} f2 {[%emt 0:00:06]} 0-1

[Event "French-ch U16-U18 2024"]
[Site "Agen"]
[Date "2024.04.16"]
[Round "4.9"]
[White "Breuil, Tristan"]
[Black "Thill-Solente, Gabriel"]
[Result "1-0"]
[ECO "B78"]
[WhiteElo "2281"]
[BlackElo "1957"]
[Annotator "TA"]
[PlyCount "79"]
[EventDate "2024.04.14"]
[EventType "swiss"]
[EventCountry "FRA"]
[SourceTitle "playchess.com"]
[Source "ChessBase"]
[SourceQuality "1"]
[TimeControl "5400+30"]

{[%evp 27,79,70,76,73,85,85,82,66,74,93,76,71,88,104,130,117,303,301,291,302,345,302,304,292,305,309,333,327,354,346,406,393,460,410,366,304,276,266,237,0,267,178,217,203,296,313,333,339,314,196,359,336,617,604]} 1. e4 {[%emt 0:00:34]} c5 {[%emt 0:00:21]} 2. Nf3 {[%emt 0:00:06]} d6 {[%emt 0:00:11]} 3. d4 {[%emt 0:00:05]} cxd4 {[%emt 0:00:06]} 4. Nxd4 {[%emt 0:00:05]} Nf6 {[%emt 0:00:06]} 5. Nc3 {[%emt 0:00:05]} g6 {[%emt 0:00:06]} 6. Be3 {[%emt 0:00:28]} Bg7 {[%emt 0:00:07]} 7. f3 {[%emt 0:00:06]} O-O {[%emt 0:00:09]} 8. Qd2 {[%emt 0:00:12]} Nc6 {[%emt 0:00:09]} 9. Bc4 {[%emt 0:00:07]} Bd7 {[%emt 0:00:09]} 10. O-O-O {[%emt 0:00:10]} Rc8 {[%emt 0:00:10]} 11. Bb3 {[%emt 0:00:35]} Ne5 {[%emt 0:00:18]} 12. Kb1 {[%emt 0:00:12]} Nc4 {[%emt 0:01:30]} 13. Bxc4 {[%emt 0:00:52]} Rxc4 {[%emt 0:00:09]} 14. g4 {[%emt 0:00:14][%cal Bg2g4,Bg4g5][%mdl 32]} b5 {[%emt 0:02:50]} 15. b3 {[%emt 0:00:52]} b4 {[%emt 0:00:32]} 16. bxc4 {[%emt 0:00:27]} bxc3 {[%emt 0:00:20]} 17. Qxc3 {[%emt 0:00:15] White is better.} Qc7 {[%emt 0:00:19]} 18. g5 {[%emt 0:03:54]} Nh5 {[%emt 0:01:36]} 19. Ka1 {[%emt 0:00:19]} Rc8 {[%emt 0:01:17]} 20. Rb1 {[%emt 0:03:46] Dodges Bb5} d5 {[%emt 0:14:06]} 21. exd5 {[%emt 0:02:09]} Qe5 $2 {[%emt 0:02:49] [#]} (21... Nf4 $16) 22. Rhd1 $18 {[%emt 0:13:14]} e6 {[%emt 0:31:10]} 23. Rb7 {[%emt 0:35:08][%csl LRa7,LRd7]} Ba4 {[%emt 0:06:11]} 24. dxe6 {[%emt 0:04:49]} (24. Rxa7 Bxc2 25. Rc1 (25. Qxc2 Qxe3 26. Qd2 Qe5 $16) 25... Bf5 $16) 24... Qxe6 {[%emt 0:01:09]} 25. Bc1 {[%emt 0:15:37]} (25. Rxa7 Bxc2 26. Rc1 (26. Qxc2 Qxe3 27. Rd7 Qe8 $14) 26... Qb6 $18) 25... Qa6 {[%emt 0:11:47]} 26. Rb1 {[%emt 0:01:34]} Bd7 {[%emt 0:18:37]} 27. c5 {[%emt 0:03:15]} Be6 {[%emt 0:00:26]} 28. Qa3 {[%emt 0:01:30]} Qc4 {[%emt 0:06:29]} 29. Bb2 {[%emt 0:00:19]} Nf4 {[%emt 0:01:02]} 30. Nxe6 {[%emt 0:08:56]} (30. Qxa7 Bd5 $18) 30... Bxb2+ {[%emt 0:00:06]} 31. Rxb2 {[%emt 0:00:04]} Nxe6 {[%emt 0:00:06]} 32. Qd3 {[%emt 0:00:31]} Qxc5 {[%emt 0:00:29]} 33. Qd6 $2 {[%emt 0:03:22]} (33. h4 $18) 33... Qc3 $2 {[%emt 0:01:15][%mdl 8192]} (33... Nxg5 34. Qf6 Ne6 35. Rb7 Qc3+ 36. Qxc3 Rxc3 37. Kb2 (37. Rxa7 Rxc2 38. Rdd7 Rxh2 $18) 37... Rxf3 38. Rxa7 $18) (33... Rd8 $1 $11 {and Black stays safe.} 34. Qxd8+ Nxd8 35. Rxd8+ Kg7) 34. Kb1 {[%emt 0:01:32]} Kg7 {[%emt 0:00:36][%cal Oc8d8] [#] Strongly threatening ...Rd8!} 35. Qe7 {[%emt 0:00:43]} Qxf3 {[%emt 0:00:29]} (35... Rc4 {might work better.} 36. a3 (36. Qxa7 Qxf3 37. Qg1 Qf5 $16) 36... Rf4) 36. Qf6+ {[%emt 0:00:35]} Qxf6 {[%emt 0:00:01]} 37. gxf6+ {[%emt 0:00:00]} Kxf6 {[%emt 0:00:11]} 38. Rf1+ {[%emt 0:00:11]} Kg7 $2 {[%emt 0:00:13]} (38... Ke7 {was necessary.} 39. Rb7+ Rc7 40. Rxc7+ Nxc7 41. Re1+ Kd6 42. Rd1+ Ke7) 39. Rb7 $1 {[%emt 0:00:06][%csl LRa7,LRf7]} Nc7 $2 {[%emt 0:01:30]} (39... Rc7 40. Rxc7 Nxc7) 40. Rf3 {[%emt 0:01:07] Weighted Error Value: White=0.29 (precise) /Black=0.54.  Loses game:     	---       	Black=2      Missed win:     	White=1     	---        Mistake:       	---       	Black=3      Inaccurate:     	White=2     	---        OK:         	White=11    	Black=5      Best:        	White=3     	Black=2} 1-0

[Event "French-ch U16-U18 2024"]
[Site "Agen"]
[Date "2024.04.16"]
[Round "4.10"]
[White "Zienkiewicz, Jan"]
[Black "Munier, Alexis"]
[Result "1-0"]
[ECO "B81"]
[WhiteElo "2240"]
[BlackElo "2003"]
[Annotator "RC"]
[PlyCount "85"]
[EventDate "2024.04.14"]
[EventType "swiss"]
[EventCountry "FRA"]
[SourceTitle "playchess.com"]
[Source "ChessBase"]
[SourceQuality "1"]
[TimeControl "5400+30"]

1. e4 {[%emt 0:01:53]} c5 {[%emt 0:04:51]} 2. Nf3 {[%emt 0:00:10]} d6 {[%emt 0:00:10]} 3. d4 {[%emt 0:00:11]} cxd4 {[%emt 0:00:07]} 4. Nxd4 {[%emt 0:00:04]} Nf6 {[%emt 0:00:09]} 5. Nc3 {[%emt 0:00:03]} a6 {[%emt 0:00:06]} 6. h3 {[%emt 0:00:06]} e6 {[%emt 0:03:10]} 7. g4 {[%emt 0:00:08]} d5 {[%emt 0:03:20]} 8. Nde2 {[%emt 0:00:54]} Nxe4 {[%emt 0:05:55]} 9. Nxe4 {[%emt 0:00:16]} dxe4 {[%emt 0:00:02]} 10. Qxd8+ {[%emt 0:00:18]} Kxd8 {[%emt 0:00:01]} 11. Bg2 {[%emt 0:05:18]} Bd7 {[%emt 0:02:18]} 12. Be3 {[%emt 0:09:49]} Kc7 {[%emt 0:16:35]} 13. Bxe4 {[%emt 0:10:23]} Bc6 {[%emt 0:00:59]} 14. Ng3 {[%emt 0:02:29]} Bd6 {[%emt 0:05:46]} 15. Bxc6 {[%emt 0:04:13]} Nxc6 {[%emt 0:01:55]} 16. Ne4 {[%emt 0:00:42]} Be7 {[%emt 0:00:48]} 17. Ke2 {[%emt 0:07:02]} Rad8 {[%emt 0:04:26]} 18. c3 {[%emt 0:03:58]} Rd5 {[%emt 0:09:21]} 19. Rad1 {[%emt 0:04:30]} Rhd8 {[%emt 0:01:34]} 20. Rxd5 {[%emt 0:00:15]} Rxd5 {[%emt 0:01:53]} 21. Rf1 {[%emt 0:03:47]} f6 {[%emt 0:37:34]} 22. f4 {[%emt 0:01:50]} Ra5 {[%emt 0:00:00]} 23. a3 {[%emt 0:02:15]} Rd5 {[%emt 0:00:00]} 24. b4 {[%emt 0:13:44]} Rd7 {[%emt 0:00:00]} 25. Rc1 {[%emt 0:00:50]} h6 {[%emt 0:00:00]} 26. Nd2 {[%emt 0:05:38]} Kd8 {[%emt 0:00:00]} 27. Nf3 {[%emt 0:03:18]} e5 {[%emt 0:00:00]} 28. f5 {[%emt 0:04:10]} Ke8 {[%emt 0:00:00]} 29. Nd2 {[%emt 0:00:42]} Kf7 {[%emt 0:00:00]} 30. Ne4 {[%emt 0:00:28]} Rd8 {[%emt 0:00:00]} 31. h4 {[%emt 0:02:09]} Rd7 {[%emt 0:00:33]} 32. Rf1 {[%emt 0:00:35]} a5 {[%emt 0:01:22]} 33. Ra1 {[%emt 0:04:15]} Rd8 {[%emt 0:00:42]} 34. b5 {[%emt 0:05:26]} Nb8 {[%emt 0:00:01]} 35. Bb6 {[%emt 0:00:26]} Rc8 {[%emt 0:00:01]} 36. Bxa5 {[%emt 0:00:26]} Nd7 {[%emt 0:01:06]} 37. Rd1 {[%emt 0:01:56]} Nc5 {[%emt 0:01:57]} 38. Nxc5 {[%emt 0:00:48]} Rxc5 {[%emt 0:01:20]} 39. Rd7 {[%emt 0:00:12]} Ke8 {[%emt 0:00:16]} 40. Rxe7+ {[%emt 0:02:31]} Kxe7 {[%emt 0:00:07]} 41. Bb4 {[%emt 0:00:01]} Kd6 {[%emt 0:00:18]} 42. c4 {[%emt 0:00:07]} h5 {[%emt 0:00:41]} 43. gxh5 {[%emt 0:03:44]} 1-0